fUST/lending_fUST_20250623
["ID","MTS","AMOUNT","RATE_DAILY","PERIOD"]
[367137047,1750667440964,-460.0,0.00021917,2]
[367137048,1750667440973,-841.11,0.00021917,2]
[367137049,1750667440983,-460.0,0.00021917,2]
[367137050,1750667440993,-460.0,0.00021917,2]
[367137051,1750667441002,-460.0,0.00021917,2]
[367137052,1750667441012,-1979.75,0.00021917,2]
[367137053,1750667441022,-460.0,0.00021917,2]
[367137054,1750667441032,-460.0,0.00021917,2]
[367137055,1750667441041,-460.0,0.00021917,2]
[367137056,1750667441051,-460.0,0.00021917,2]
[367137057,1750667441060,-460.0,0.00021917,2]
[367137058,1750667441070,-367.51572046,0.00021917,2]
[367137059,1750667441080,-460.0,0.00021917,2]
[367137060,1750667441090,-460.0,0.00021917,2]
[367137061,1750667441101,-497.56,0.00021917,2]
[367137062,1750667441111,-593.38698982,0.00021917,2]
[367137063,1750667441121,-460.0,0.00021917,2]
[367137064,1750667441130,-1284.61,0.00021917,2]
[367137065,1750667441140,-460.0,0.00021917,2]
[367137066,1750667441150,-528.19,0.00021917,2]
[367137067,1750667441161,-345.59173959,0.00021917,2]
[367137068,1750667441170,-460.0,0.00021917,2]
[367137069,1750667441180,-460.51869326,0.00021917,2]
[367137070,1750667441189,-766.63,0.00021917,2]
[367137071,1750667441199,-460.0,0.00021917,2]
[367137072,1750667441209,-335.12601992,0.00021917,2]
[367137073,1750667441220,-460.0,0.00021917,2]
[367137074,1750667441229,-460.0,0.00021917,2]
[367137075,1750667441239,-460.0,0.00021917,2]
[367137076,1750667441249,-962.09,0.00021917,2]
[367137077,1750667441258,-460.0,0.00021917,2]
[367137078,1750667441268,-626.33,0.00021917,2]
[367137079,1750667441278,-460.0,0.00021917,2]
[367137080,1750667441287,-460.0,0.00021917,2]
[367137081,1750667441298,-460.0,0.00021917,2]
[367137082,1750667441307,-1134.0,0.00021917,2]
[367137083,1750667441316,-460.0,0.00021917,2]
[367137084,1750667441326,-504.34,0.00021917,2]
[367137085,1750667441335,-460.0,0.00021917,2]
[367137086,1750667441344,-500.0,0.00021917,2]
[367137087,1750667441354,-460.0,0.00021917,2]
[367137088,1750667441364,-500.0,0.00021917,2]
[367137089,1750667441374,-151.0,0.00021917,2]
[367137090,1750667441383,-810.86,0.00021917,2]
[367137091,1750667441393,-151.0,0.00021917,2]
[367137092,1750667441404,-151.0,0.00021917,2]
[367137093,1750667441414,-460.0,0.00021917,2]
[367137094,1750667441423,-460.0,0.00021917,2]
[367137095,1750667441435,-151.0,0.00021917,2]
[367137096,1750667441445,-460.0,0.00021917,2]
[367137097,1750667441455,-460.0,0.00021917,2]
[367137098,1750667441464,-460.0,0.00021917,2]
[367137099,1750667441473,-512.44251145,0.00021917,2]
[367137100,1750667441484,-460.0,0.00021917,2]
[367137101,1750667441494,-151.0,0.00021917,2]
[367137102,1750667441503,-151.0,0.00021917,2]
[367137103,1750667441512,-151.0,0.00021917,2]
[367137104,1750667441523,-151.0,0.00021917,2]
[367137105,1750667441532,-460.0,0.00021917,2]
[367137106,1750667441542,-151.0,0.00021917,2]
[367137107,1750667441551,-151.0,0.00021917,2]
[367137108,1750667441561,-460.0,0.00021917,2]
[367137109,1750667441570,-151.0,0.00021917,2]
[367137110,1750667441580,-460.0,0.00021917,2]
[367137111,1750667441590,-151.0,0.00021917,2]
[367137112,1750667441599,-721.91,0.00021917,2]
[367137113,1750667441610,-460.0,0.00021917,2]
[367137114,1750667441620,-460.0,0.00021917,2]
[367137115,1750667441630,-460.0,0.00021917,2]
[367137116,1750667441639,-1583.23,0.00021917,2]
[367137117,1750667441649,-521.52305055,0.00021917,2]
[367137118,1750667441659,-460.0,0.00021917,2]
[367137119,1750667441669,-460.0,0.00021917,2]
[367137120,1750667441678,-460.0,0.00021917,2]
[367137121,1750667441688,-460.0,0.00021917,2]
[367137122,1750667441698,-1242.5,0.00021917,2]
[367137123,1750667441708,-460.0,0.00021917,2]
[367137124,1750667441717,-460.48002916,0.00021917,2]
[367137125,1750667441727,-460.0,0.00021917,2]
[367137126,1750667441737,-516.66,0.00021917,2]
[367137127,1750667441746,-673.36,0.00021917,2]
[367137128,1750667441755,-460.0,0.00021917,2]
[367137129,1750667441766,-460.0,0.00021917,2]
[367137130,1750667441775,-460.0,0.00021917,2]
[367137131,1750667441785,-460.0,0.00021917,2]
[367137132,1750667441795,-460.0,0.00021917,2]
[367137133,1750667441805,-604.57556049,0.00021917,2]
[367137134,1750667441815,-460.0,0.00021917,2]
[367137135,1750667441824,-460.0,0.00021917,2]
[367137136,1750667441834,-460.0,0.00021917,2]
[367137137,1750667441844,-460.0,0.00021917,2]
[367137138,1750667441853,-469.08,0.00021917,2]
[367137139,1750667441863,-460.0,0.00021917,2]
[367137140,1750667441873,-1494.28,0.00021917,2]
[367137141,1750667441882,-460.0,0.00021917,2]
[367137142,1750667441892,-460.0,0.00021917,2]
[367137143,1750667441901,-390.68461077,0.00021917,2]
[367137144,1750667441911,-460.0,0.00021917,2]
[367137145,1750667441920,-460.0,0.00021917,2]
[367137146,1750667441930,-460.0,0.00021917,2]
[367137147,1750667441939,-460.0,0.00021917,2]
[367137148,1750667441949,-300.0,0.00021917,2]
[367137149,1750667441959,-460.0,0.00021917,2]
[367137150,1750667441968,-460.0,0.00021917,2]
[367137151,1750667441978,-460.0,0.00021917,2]
[367137152,1750667441990,-460.0,0.00021917,2]
[367137153,1750667442000,-460.0,0.00021917,2]
[367137154,1750667442009,-460.0,0.00021917,2]
[367137155,1750667442019,-460.0,0.00021917,2]
[367137156,1750667442028,-758.73,0.00021917,2]
[367137157,1750667442037,-460.0,0.00021917,2]
[367137158,1750667442047,-460.0,0.00021917,2]
[367137159,1750667442056,-383.98123954,0.00021917,2]
[367137160,1750667442067,-437.17930243,0.00021917,2]
[367137161,1750667442078,-463.45151822,0.00021917,2]
[367137162,1750667442089,-460.0,0.00021917,2]
[367137163,1750667442100,-460.0,0.00021917,2]
[367137164,1750667442110,-460.0,0.00021917,2]
[367137165,1750667442119,-460.0,0.00021917,2]
[367137166,1750667442128,-460.0,0.00021917,2]
[367137167,1750667442138,-547.46089115,0.00021917,2]
[367137168,1750667442147,-665.94,0.00021917,2]
[367137169,1750667442160,-460.0,0.00021917,2]
[367137170,1750667442169,-460.0,0.00021917,2]
[367137171,1750667442178,-460.0,0.00021917,2]
[367137172,1750667442188,-272.17558841,0.00021917,2]
[367137173,1750667442198,-460.0,0.00021917,2]
[367137174,1750667442207,-960.84,0.00021917,2]
[367137175,1750667442217,-460.0,0.00021917,2]
[367137176,1750667442227,-460.0,0.00021917,2]
[367137177,1750667442238,-1429.6,0.00021917,2]
[367137178,1750667442248,-460.0,0.00021917,2]
[367137179,1750667442257,-500.0,0.00021917,2]
[367137180,1750667442267,-500.0,0.00021917,2]
[367137181,1750667442276,-500.0,0.00021917,2]
[367137182,1750667442285,-500.0,0.00021917,2]
[367137183,1750667442295,-500.0,0.00021917,2]
[367137184,1750667442304,-500.0,0.00021917,2]
[367137185,1750667442314,-500.0,0.00021917,2]
[367137186,1750667442323,-717.54,0.00021917,2]
[367137187,1750667442333,-773.64,0.00021917,2]
[367137188,1750667442343,-460.0,0.00021917,2]
[367137189,1750667442353,-460.0,0.00021917,2]
[367137190,1750667442362,-460.0,0.00021917,2]
[367137191,1750667442372,-460.0,0.00021917,2]
[367137192,1750667442381,-460.0,0.00021917,2]
[367137193,1750667442392,-460.0,0.00021917,2]
[367137194,1750667442401,-1957.51,0.00021917,2]
[367137195,1750667442411,-1295.91,0.00021917,2]
[367137196,1750667442421,-460.0,0.00021917,2]
[367137197,1750667442431,-460.0,0.00021917,2]
[367137198,1750667442441,-460.0,0.00021917,2]
[367137199,1750667442450,-460.0,0.00021917,2]
[367137200,1750667442461,-460.0,0.00021917,2]
[367137201,1750667442471,-460.0,0.00021917,2]
[367137202,1750667442481,-460.0,0.00021917,2]
[367137203,1750667442491,-999.86,0.00021917,2]
[367137204,1750667442500,-460.0,0.00021917,2]
[367137205,1750667442510,-460.0,0.00021917,2]
[367137206,1750667442520,-460.0,0.00021917,2]
[367137207,1750667442530,-464.61,0.00021917,2]
[367137208,1750667442539,-460.0,0.00021917,2]
[367137209,1750667442549,-469.9,0.00021917,2]
[367137210,1750667442558,-460.0,0.00021917,2]
[367137211,1750667442568,-460.0,0.00021917,2]
[367137212,1750667442578,-460.0,0.00021917,2]
[367137213,1750667442587,-460.0,0.00021917,2]
[367137214,1750667442597,-519.30897647,0.00021917,2]
[367137215,1750667442607,-460.0,0.00021917,2]
[367137216,1750667442617,-460.0,0.00021917,2]
[367137217,1750667442627,-460.0,0.00021917,2]
[367137218,1750667442637,-460.0,0.00021917,2]
[367137219,1750667442647,-500.0,0.00021917,2]
[367137220,1750667442656,-460.0,0.00021917,2]
[367137221,1750667442666,-1018.18,0.00021917,2]
[367137222,1750667442675,-460.0,0.00021917,2]
[367137223,1750667442685,-460.0,0.00021917,2]
[367137224,1750667442694,-460.0,0.00021917,2]
[367137225,1750667442704,-460.0,0.00021917,2]
[367137226,1750667442714,-460.0,0.00021917,2]
[367137227,1750667442723,-460.0,0.00021917,2]
[367137228,1750667442733,-460.0,0.00021917,2]
[367137229,1750667442743,-460.0,0.00021917,2]
[367137230,1750667442752,-460.0,0.00021917,2]
[367137231,1750667442763,-460.0,0.00021917,2]
[367137232,1750667442772,-500.0,0.00021917,2]
[367137233,1750667442782,-460.0,0.00021917,2]
[367137234,1750667442792,-477.04,0.00021917,2]
[367137235,1750667442801,-3686.23,0.00021917,2]
[367137236,1750667442810,-494.14023027,0.00021917,2]
[367137237,1750667442820,-406.48205513,0.00021917,2]
[367137238,1750667442830,-460.0,0.00021917,2]
[367137239,1750667442839,-578.66057676,0.00021917,2]
[367137240,1750667442849,-848.27,0.00021917,2]
[367137241,1750667442858,-460.0,0.00021917,2]
[367137242,1750667442868,-460.0,0.00021917,2]
[367137243,1750667442877,-572.61809281,0.00021917,2]
[367137244,1750667442887,-460.0,0.00021917,2]
[367137245,1750667442896,-460.0,0.00021917,2]
[367137246,1750667442906,-460.0,0.00021917,2]
[367137247,1750667442915,-460.0,0.00021917,2]
[367137248,1750667442925,-460.0,0.00021917,2]
[367137249,1750667442935,-460.0,0.00021917,2]
[367137250,1750667442945,-460.0,0.00021917,2]
[367137251,1750667442955,-460.0,0.00021917,2]
[367137252,1750667442965,-461.24,0.00021917,2]
[367137253,1750667442975,-460.0,0.00021917,2]
[367137254,1750667442984,-460.0,0.00021917,2]
[367137255,1750667442993,-460.0,0.00021917,2]
[367137256,1750667443003,-460.0,0.00021917,2]
[367137257,1750667443012,-494.37346474,0.00021917,2]
[367137258,1750667443022,-402.03869345,0.00021917,2]
[367137259,1750667443032,-460.0,0.00021917,2]
[367137260,1750667443042,-837.85,0.00021917,2]
[367137261,1750667443051,-414.99324548,0.00021917,2]
[367137262,1750667443061,-460.0,0.00021917,2]
[367137263,1750667443070,-460.0,0.00021917,2]
[367137264,1750667443079,-460.17648486,0.00021917,2]
[367137265,1750667443089,-460.0,0.00021917,2]
[367137266,1750667443099,-891.97,0.00021917,2]
[367137267,1750667443109,-1020.25,0.00021917,2]
[367137268,1750667443118,-460.0,0.00021917,2]
[367137269,1750667443127,-460.0,0.00021917,2]
[367137270,1750667443137,-460.0,0.00021917,2]
[367137271,1750667443147,-460.0,0.00021917,2]
[367137272,1750667443156,-460.0,0.00021917,2]
[367137273,1750667443165,-1034.76,0.00021917,2]
[367137274,1750667443175,-460.0,0.00021917,2]
[367137276,1750667443184,-460.0,0.00021917,2]
[367137277,1750667443194,-797.37,0.00021917,2]
[367137278,1750667443205,-460.0,0.00021917,2]
[367137279,1750667443214,-460.0,0.00021917,2]
[367137280,1750667443224,-618.41,0.00021917,2]
[367137281,1750667443233,-460.0,0.00021917,2]
[367137282,1750667443244,-460.0,0.00021917,2]
[367137284,1750667443253,-978.61,0.00021917,2]
[367137285,1750667443263,-460.0,0.00021917,2]
[367137286,1750667443273,-460.0,0.00021917,2]
[367137287,1750667443282,-460.0,0.00021917,2]
[367137288,1750667443291,-460.0,0.00021917,2]
[367137289,1750667443301,-402.6225621,0.00021917,2]
[367137290,1750667443311,-460.0,0.00021917,2]
[367137291,1750667443321,-460.0,0.00021917,2]
[367137292,1750667443331,-460.0,0.00021917,2]
[367137293,1750667443340,-460.80636229,0.00021917,2]
[367137294,1750667443350,-460.0,0.00021917,2]
[367137295,1750667443359,-460.0,0.00021917,2]
[367137296,1750667443369,-460.0,0.00021917,2]
[367137297,1750667443378,-588.05506252,0.00021917,2]
[367137310,1750667443572,-460.0,0.00021917,2]
[367137312,1750667443584,-772.79,0.00021917,2]
[367137314,1750667443594,-200.0,0.00021917,10]
[367137315,1750667443604,-200.0,0.00021917,10]
[367137317,1750667443614,-460.0,0.00021917,2]
[367137319,1750667443623,-200.0,0.00021917,10]
[367137321,1750667443633,-200.0,0.00021917,10]
[367137323,1750667443642,-200.0,0.00021917,10]
[367137324,1750667443652,-6704.7,0.00021917,2]
[367137325,1750667443661,-200.0,0.00021917,10]
[367137326,1750667443671,-200.0,0.00021917,10]
[367137327,1750667443681,-200.0,0.00021917,10]
[367137328,1750667443690,-200.0,0.00021917,10]
[367137330,1750667443699,-200.0,0.00021917,10]
[367137332,1750667443709,-460.0,0.00021917,2]
[367137334,1750667443718,-460.0,0.00021917,2]
[367137335,1750667443728,-814.26,0.00021917,2]
[367137336,1750667443738,-2232.98,0.00021917,2]
[367137337,1750667443747,-460.0,0.00021917,2]
[367137338,1750667443757,-151.0,0.00021917,2]
[367137339,1750667443766,-413.42126971,0.00021917,2]
[367137340,1750667443776,-151.0,0.00021917,2]
[367137341,1750667443785,-151.0,0.00021917,2]
[367137342,1750667443795,-460.0,0.00021917,2]
[367137343,1750667443805,-805.5,0.00021917,2]
[367137344,1750667443815,-151.0,0.00021917,2]
[367137345,1750667443825,-460.0,0.00021917,2]
[367137346,1750667443834,-460.0,0.00021917,2]
[367137347,1750667443844,-151.0,0.00021917,2]
[367137348,1750667443853,-166.34713369,0.00021917,2]
[367137349,1750667443863,-516.58,0.00021917,2]
[367137351,1750667443873,-151.0,0.00021917,2]
[367137353,1750667443883,-460.0,0.00021917,2]
[367137355,1750667443893,-777.6,0.00021917,2]
[367137357,1750667443903,-851.87,0.00021917,2]
[367137358,1750667443914,-151.0,0.00021917,2]
[367137359,1750667443924,-151.0,0.00021917,2]
[367137360,1750667443934,-151.0,0.00021917,2]
[367137361,1750667443944,-354.29571344,0.00021917,2]
[367137362,1750667443954,-460.0,0.00021917,2]
[367137363,1750667443964,-743.62,0.00021917,2]
[367137364,1750667443974,-460.0,0.00021917,2]
[367137365,1750667443983,-460.0,0.00021917,2]
[367137366,1750667443993,-151.0,0.00021917,2]
[367137367,1750667444003,-460.0,0.00021917,2]
[367137368,1750667444012,-500.0,0.00021917,2]
[367137369,1750667444022,-460.0,0.00021917,2]
[367137370,1750667444033,-151.0,0.00021917,2]
[367137371,1750667444043,-460.0,0.00021917,2]
[367137372,1750667444053,-469.39,0.00021917,2]
[367137373,1750667444063,-475.03,0.00021917,2]
[367137374,1750667444072,-460.0,0.00021917,2]
[367137375,1750667444082,-475.18,0.00021917,2]
[367137376,1750667444091,-551.12,0.00021917,2]
[367137377,1750667444101,-1090.19,0.00021917,2]
[367137378,1750667444111,-460.0,0.00021917,2]
[367137379,1750667444120,-460.0,0.00021917,2]
[367137380,1750667444129,-460.0,0.00021917,2]
[367137381,1750667444139,-7204.74,0.00021917,2]
[367137382,1750667444149,-460.0,0.00021917,2]
[367137383,1750667444161,-460.0,0.00021917,2]
[367137384,1750667444171,-1079.84,0.00021917,2]
[367137385,1750667444180,-460.0,0.00021917,2]
[367137386,1750667444190,-1171.1,0.00021917,2]
[367137387,1750667444199,-2849.39,0.00021917,2]
[367137388,1750667444211,-460.0,0.00021917,2]
[367137389,1750667444221,-460.0,0.00021917,2]
[367137390,1750667444232,-460.0,0.00021917,2]
[367137391,1750667444242,-414.49394333,0.00021917,2]
[367137392,1750667444251,-507.26404931,0.00021917,2]
[367137393,1750667444261,-460.0,0.00021917,2]
[367137394,1750667444271,-1121.42,0.00021917,2]
[367137395,1750667444281,-6500.85,0.00021917,2]
[367137396,1750667444290,-977.49,0.00021917,2]
[367137397,1750667444300,-460.0,0.00021917,2]
[367137398,1750667444309,-460.0,0.00021917,2]
[367137399,1750667444318,-500.0,0.00021917,2]
[367137400,1750667444328,-950.2,0.00021917,2]
[367137401,1750667444338,-460.0,0.00021917,2]
[367137402,1750667444348,-463.85,0.00021917,2]
[367137403,1750667444358,-1654.3,0.00021917,2]
[367137404,1750667444368,-460.0,0.00021917,2]
[367137405,1750667444378,-460.0,0.00021917,2]
[367137406,1750667444388,-1099.31,0.00021917,2]
[367137407,1750667444398,-1054.25,0.00021917,2]
[367137408,1750667444407,-857.29,0.00021917,2]
[367137409,1750667444417,-460.0,0.00021917,2]
[367137410,1750667444427,-460.0,0.00021917,2]
[367137411,1750667444437,-460.0,0.00021917,2]
[367137412,1750667444449,-1718.69,0.00021917,2]
[367137413,1750667444459,-460.0,0.00021917,2]
[367137414,1750667444470,-625.94,0.00021917,2]
[367137415,1750667444479,-500.0,0.00021917,2]
[367137416,1750667444489,-500.0,0.00021917,2]
[367137417,1750667444498,-460.0,0.00021917,2]
[367137418,1750667444508,-2315.14,0.00021917,2]
[367137419,1750667444518,-471.83,0.00021917,2]
[367137420,1750667444528,-572.94,0.00021917,2]
[367137421,1750667444538,-588.57573045,0.00021917,2]
[367137422,1750667444547,-733.92,0.00021917,2]
[367137423,1750667444557,-460.0,0.00021917,2]
[367137424,1750667444567,-1310.49,0.00021917,2]
[367137425,1750667444576,-460.0,0.00021917,2]
[367137426,1750667444585,-460.0,0.00021917,2]
[367137427,1750667444595,-531.99,0.00021917,2]
[367137428,1750667444604,-902.17,0.00021917,2]
[367137429,1750667444614,-460.0,0.00021917,2]
[367137430,1750667444623,-460.0,0.00021917,2]
[367137431,1750667444632,-639.3,0.00021917,2]
[367137432,1750667444642,-460.0,0.00021917,2]
[367137433,1750667444651,-958.78,0.00021917,2]
[367137434,1750667444661,-838.24,0.00021917,2]
[367137435,1750667444671,-460.0,0.00021917,2]
[367137436,1750667444680,-460.0,0.00021917,2]
[367137437,1750667444689,-460.0,0.00021917,2]
[367137438,1750667444699,-460.0,0.00021917,2]
[367137439,1750667444709,-617.18,0.00021917,2]
[367137440,1750667444718,-151.0,0.00021917,2]
[367137441,1750667444728,-696.4,0.00021917,2]
[367137442,1750667444737,-460.0,0.00021917,2]
[367137443,1750667444746,-517.99,0.00021917,2]
[367137444,1750667444755,-464.67964733,0.00021917,2]
[367137445,1750667444765,-460.0,0.00021917,2]
[367137446,1750667444775,-190.84577573,0.00021917,2]
[367137447,1750667444784,-460.0,0.00021917,2]
[367137448,1750667444794,-460.0,0.00021917,2]
[367137449,1750667444803,-460.0,0.00021917,2]
[367137450,1750667444812,-460.0,0.00021917,2]
[367137451,1750667444821,-460.0,0.00021917,2]
[367137452,1750667444831,-460.0,0.00021917,2]
[367137453,1750667444840,-686.24,0.00021917,2]
[367137454,1750667444849,-460.0,0.00021917,2]
[367137455,1750667444859,-845.01,0.00021917,2]
[367137456,1750667444868,-460.0,0.00021917,2]
[367137457,1750667444877,-3057.99,0.00021917,2]
[367137458,1750667444886,-460.0,0.00021917,2]
[367137459,1750667444897,-460.0,0.00021917,2]
[367137460,1750667444906,-460.0,0.00021917,2]
[367137461,1750667444915,-460.0,0.00021917,2]
[367137462,1750667444924,-165.15346909,0.00021917,2]
[367137463,1750667444934,-460.0,0.00021917,2]
[367137464,1750667444943,-460.0,0.00021917,2]
[367137465,1750667444953,-460.0,0.00021917,2]
[367137466,1750667444962,-460.0,0.00021917,2]
[367137467,1750667444972,-502.73,0.00021917,2]
[367137468,1750667444981,-1133.22,0.00021917,2]
[367137469,1750667444990,-460.0,0.00021917,2]
[367137470,1750667445000,-460.0,0.00021917,2]
[367137471,1750667445010,-860.4,0.00021917,2]
[367137472,1750667445019,-460.0,0.00021917,2]
[367137473,1750667445029,-460.0,0.00021917,2]
[367137474,1750667445038,-460.0,0.00021917,2]
[367137475,1750667445047,-460.0,0.00021917,2]
[367137476,1750667445057,-460.0,0.00021917,2]
[367137477,1750667445066,-460.0,0.00021917,2]
[367137478,1750667445076,-272.36812956,0.00021917,2]
[367137479,1750667445086,-500.2,0.00021917,2]
[367137480,1750667445096,-460.0,0.00021917,2]
[367137481,1750667445105,-7926.46,0.00021917,2]
[367137482,1750667445115,-460.0,0.00021917,2]
[367137483,1750667445125,-487.28631749,0.00021917,2]
[367137484,1750667445135,-460.0,0.00021917,2]
[367137485,1750667445144,-460.0,0.00021917,2]
[367137486,1750667445156,-1211.19,0.00021917,2]
[367137487,1750667445165,-503.32344317,0.00021917,2]
[367137488,1750667445175,-460.0,0.00021917,2]
[367137489,1750667445185,-460.0,0.00021917,2]
[367137490,1750667445194,-320.29184033,0.00021917,2]
[367137491,1750667445205,-838.85,0.00021917,2]
[367137492,1750667445214,-544.8,0.00021917,2]
[367137493,1750667445224,-460.0,0.00021917,2]
[367137494,1750667445234,-460.0,0.00021917,2]
[367137495,1750667445243,-460.0,0.00021917,2]
[367137496,1750667445253,-3812.56,0.00021917,2]
[367137497,1750667445263,-993.65,0.00021917,2]
[367137498,1750667445273,-460.0,0.00021917,2]
[367137499,1750667445282,-1492.97,0.00021917,2]
[367137500,1750667445292,-796.2,0.00021917,2]
[367137501,1750667445301,-157.31418918,0.00021917,2]
[367137502,1750667445310,-2095.51,0.00021917,2]
[367137503,1750667445320,-460.0,0.00021917,2]
[367137504,1750667445330,-173.3869706,0.00021917,2]
[367137505,1750667445339,-460.0,0.00021917,2]
[367137506,1750667445348,-460.0,0.00021917,2]
[367137507,1750667445359,-460.0,0.00021917,2]
[367137508,1750667445368,-460.0,0.00021917,2]
[367137509,1750667445377,-1044.6,0.00021917,2]
[367137510,1750667445387,-206.52037536,0.00021917,2]
[367137511,1750667445397,-1371.96,0.00021917,2]
[367137512,1750667445407,-460.0,0.00021917,2]
[367137513,1750667445417,-2473.62,0.00021917,2]
[367137514,1750667445426,-151.0,0.00021917,2]
[367137515,1750667445435,-460.0,0.00021917,2]
[367137516,1750667445445,-460.0,0.00021917,2]
[367137517,1750667445455,-624.12,0.00021917,2]
[367137518,1750667445464,-460.0,0.00021917,2]
[367137519,1750667445474,-21969.91,0.00021917,2]
[367137520,1750667445484,-460.0,0.00021917,2]
[367137521,1750667445494,-460.0,0.00021917,2]
[367137522,1750667445504,-1735.58,0.00021917,2]
[367137523,1750667445513,-803.03,0.00021917,2]
[367137524,1750667445523,-460.0,0.00021917,2]
[367137525,1750667445533,-2965.19,0.00021917,2]
[367137526,1750667445543,-478.89,0.00021917,2]
[367137527,1750667445554,-460.0,0.00021917,2]
[367137528,1750667445564,-500.0,0.00021917,2]
[367137529,1750667445573,-403.78421503,0.00021917,2]
[367137530,1750667445583,-710.47,0.00021917,2]
[367137531,1750667445593,-844.78,0.00021917,2]
[367137532,1750667445603,-460.0,0.00021917,2]
[367137533,1750667445820,-460.0,0.00021917,2]
[367137534,1750667445830,-151.603948,0.00021917,2]
[367137535,1750667445839,-500.0,0.00021917,2]
[367137536,1750667445849,-460.0,0.00021917,2]
[367137537,1750667445858,-744.21,0.00021917,2]
[367137538,1750667445868,-2313.34,0.00021917,2]
[367137539,1750667445877,-460.0,0.00021917,2]
[367137540,1750667445887,-610.84,0.00021917,2]
[367137541,1750667445897,-460.0,0.00021917,2]
[367137542,1750667445906,-151.0,0.00021917,2]
[367137543,1750667445916,-460.0,0.00021917,2]
[367137544,1750667445925,-460.0,0.00021917,2]
[367137545,1750667445935,-1141.15,0.00021917,2]
[367137546,1750667445945,-198.0,0.00021917,2]
[367137547,1750667445956,-481.29723445,0.00021917,2]
[367137548,1750667445967,-460.0,0.00021917,2]
[367137549,1750667445976,-460.0,0.00021917,2]
[367137550,1750667445987,-2438.96,0.00021917,2]
[367137551,1750667445996,-460.0,0.00021917,2]
[367137552,1750667446007,-1527.02,0.00021917,2]
[367137553,1750667446018,-460.0,0.00021917,2]
[367137554,1750667446030,-1935.47,0.00021917,2]
[367137555,1750667446040,-460.0,0.00021917,2]
[367137556,1750667446050,-460.0,0.00021917,2]
[367137557,1750667446060,-460.0,0.00021917,2]
[367137558,1750667446069,-2239.41,0.00021917,2]
[367137560,1750667446079,-6850.57,0.00021917,2]
[367137561,1750667446089,-460.0,0.00021917,2]
[367137562,1750667446098,-460.0,0.00021917,2]
[367137563,1750667446108,-513.71,0.00021917,2]
[367137564,1750667446117,-274.91846312,0.00021917,2]
[367137565,1750667446127,-764.68,0.00021917,2]
[367137566,1750667446193,-5032.78,0.00021917,2]
[367137567,1750667446202,-444.34942606,0.00021917,2]
[367137568,1750667446212,-1100.16,0.00021917,2]
[367137569,1750667446221,-515.01,0.00021917,2]
[367137570,1750667446230,-515.67632236,0.00021917,2]
[367137571,1750667446239,-460.0,0.00021917,2]
[367137572,1750667446251,-460.0,0.00021917,2]
[367137573,1750667446261,-460.0,0.00021917,2]
[367137574,1750667446272,-532.41,0.00021917,2]